[Event "*** Titled Tuesday Blitz"]
[Site "Chess.com"]
[Date "2021.04.27"]
[Round "3"]
[White "Ajedrez_con_German"]
[Black "tteshan"]
[Result "1-0"]
[WhiteElo "2532"]
[BlackElo "2253"]
[TimeControl "180+1"]
[EndTime "10:30:11 PDT"]
[Termination "Ajedrez_con_German won by resignation"]

1. d4 {[%clk 0:02:57.2]} 1... d5 {[%clk 0:02:59.9]} 2. c4 {[%clk 0:02:54.7]}
2... dxc4 {[%clk 0:03:00.8]} 3. e3 {[%clk 0:02:54.3]} 3... Nf6 {[%clk
0:03:00.5]} 4. Bxc4 {[%clk 0:02:54]} 4... e6 {[%clk 0:03:01]} 5. Nf3 {[%clk
0:02:53.9]} 5... a6 {[%clk 0:03:01.3]} 6. O-O {[%clk 0:02:52]} 6... b5 {[%clk
0:03:01.4]} 7. Bb3 {[%clk 0:02:52.2]} 7... Bb7 {[%clk 0:03:01.6]} 8. a4 {[%clk
0:02:52.3]} 8... b4 {[%clk 0:03:01.4]} 9. Nbd2 {[%clk 0:02:51.5]} 9... Nbd7
{[%clk 0:03:01.6]} 10. Qe2 {[%clk 0:02:41.6]} 10... c5 {[%clk 0:03:01.3]} 11.
Rd1 {[%clk 0:02:33.1]} 11... Be7 {[%clk 0:02:53.4]} 12. Nc4 {[%clk 0:02:29.4]}
12... Qc7 {[%clk 0:02:40.7]} 13. Bd2 {[%clk 0:02:20.5]} 13... O-O {[%clk
0:02:36.1]} 14. Rac1 {[%clk 0:02:19.7]} 14... Rac8 {[%clk 0:02:27.5]} 15. Be1
{[%clk 0:02:16.6]} 15... Qb8 {[%clk 0:02:24]} 16. h3 {[%clk 0:02:14.7]} 16...
Rfd8 {[%clk 0:02:21.4]} 17. Na5 {[%clk 0:01:56.6]} 17... cxd4 {[%clk 0:01:17.5]}
18. Nxb7 {[%clk 0:01:49.5]} 18... Qxb7 {[%clk 0:01:18.4]} 19. Nxd4 {[%clk
0:01:48.9]} 19... Nc5 {[%clk 0:01:16.5]} 20. Bc4 {[%clk 0:01:39.5]} 20... Nd5
{[%clk 0:00:45.7]} 21. Nb3 {[%clk 0:01:29.2]} 21... Nxb3 {[%clk 0:00:41.4]} 22.
Bxb3 {[%clk 0:01:29.1]} 22... Nb6 {[%clk 0:00:35.5]} 23. Rxc8 {[%clk 0:01:17.1]}
23... Rxc8 {[%clk 0:00:33.8]} 24. a5 {[%clk 0:01:16.9]} 24... Nd7 {[%clk
0:00:30.5]} 25. Bc4 {[%clk 0:01:05.1]} 25... Nc5 {[%clk 0:00:28.4]} 26. b3
{[%clk 0:01:05.2]} 26... h6 {[%clk 0:00:25.9]} 27. Qd2 {[%clk 0:00:59.2]} 27...
Rd8 {[%clk 0:00:23.5]} 28. Qc1 {[%clk 0:00:58.4]} 28... Rc8 {[%clk 0:00:20.6]}
29. Qd2 {[%clk 0:00:57.1]} 29... Rd8 {[%clk 0:00:20.3]} 30. Qe2 {[%clk
0:00:57.6]} 30... Rc8 {[%clk 0:00:12.2]} 31. Bd2 {[%clk 0:00:57.9]} 31... Bd8
{[%clk 0:00:11.6]} 32. Ra1 {[%clk 0:00:55.9]} 32... Bf6 {[%clk 0:00:11.7]} 33.
Ra2 {[%clk 0:00:53.4]} 33... Rd8 {[%clk 0:00:09.9]} 34. Qe1 {[%clk 0:00:52.2]}
34... Rb8 {[%clk 0:00:06.8]} 35. Rc2 {[%clk 0:00:48.6]} 35... Ne4 {[%clk
0:00:06.4]} 36. Qe2 {[%clk 0:00:37.6]} 36... Nxd2 {[%clk 0:00:06.4]} 37. Qxd2
{[%clk 0:00:38.5]} 37... Rd8 {[%clk 0:00:05.5]} 38. Qe2 {[%clk 0:00:37.8]} 38...
Rd6 {[%clk 0:00:03]} 39. Rd2 {[%clk 0:00:37.1]} 39... Rxd2 {[%clk 0:00:02.5]}
40. Qxd2 {[%clk 0:00:37.4]} 40... Qc7 {[%clk 0:00:02.8]} 41. Qxb4 {[%clk
0:00:34.5]} 41... Qd7 {[%clk 0:00:02.2]} 42. Bxa6 {[%clk 0:00:28.9]} 42... Qd1+
{[%clk 0:00:02.3]} 43. Bf1 {[%clk 0:00:28.8]} 43... Be5 {[%clk 0:00:02.9]} 44.
g3 {[%clk 0:00:26.6]} 44... Bc7 {[%clk 0:00:02.4]} 45. a6 {[%clk 0:00:24.3]}
45... Qd8 {[%clk 0:00:01.4]} 46. a7 {[%clk 0:00:22.4]} 46... Qa8 {[%clk
0:00:01.9]} 47. Qe7 {[%clk 0:00:09.9]} 47... Bb6 {[%clk 0:00:01.8]} 48. Bc4
{[%clk 0:00:07.3]} 48... Qxa7 {[%clk 0:00:02.3]} 49. Qe8+ {[%clk 0:00:07.2]}
49... Kh7 {[%clk 0:00:02.1]} 50. Qa4 {[%clk 0:00:07.5]} 50... Qxa4 {[%clk
0:00:02.2]} 51. bxa4 {[%clk 0:00:07.7]} 51... Kg6 {[%clk 0:00:02.7]} 52. Kf1
{[%clk 0:00:08.1]} 52... Kf6 {[%clk 0:00:03.3]} 53. Ke2 {[%clk 0:00:09]} 53...
Ke5 {[%clk 0:00:03.9]} 54. f4+ {[%clk 0:00:08.2]} 54... Kd6 {[%clk 0:00:04.5]}
55. Kd3 {[%clk 0:00:08.6]} 55... Kc5 {[%clk 0:00:05.1]} 56. Bb5 {[%clk
0:00:08.7]} 56... Bd8 {[%clk 0:00:05.2]} 57. Be8 {[%clk 0:00:08.2]} 57... f6
{[%clk 0:00:04.8]} 58. Ke4 {[%clk 0:00:08.1]} 58... Kd6 {[%clk 0:00:04.2]} 59.
g4 {[%clk 0:00:08.2]} 59... Ke7 {[%clk 0:00:04.2]} 60. Bb5 {[%clk 0:00:07.9]}
60... Kd6 {[%clk 0:00:04.6]} 61. Kd3 {[%clk 0:00:06.6]} 61... Kc5 {[%clk
0:00:04.4]} 62. Bd7 {[%clk 0:00:06]} 62... Kd6 {[%clk 0:00:05]} 63. Be8 {[%clk
0:00:06.4]} 63... Ba5 {[%clk 0:00:05.4]} 64. Kc4 {[%clk 0:00:02.7]} 64... Bb6
{[%clk 0:00:05.3]} 65. e4 {[%clk 0:00:02.7]} 65... Kc7 {[%clk 0:00:03.9]} 66.
Kb5 {[%clk 0:00:02.8]} 66... Be3 {[%clk 0:00:03.8]} 67. f5 {[%clk 0:00:03]}
67... exf5 {[%clk 0:00:03.9]} 68. gxf5 {[%clk 0:00:03.4]} 68... Kb7 {[%clk
0:00:03.6]} 69. a5 {[%clk 0:00:03.8]} 69... Bf4 {[%clk 0:00:02]} 70. a6+ {[%clk
0:00:04.1]} 70... Ka7 {[%clk 0:00:02.9]} 71. Bc6 {[%clk 0:00:04.3]} 71... Be5
{[%clk 0:00:03.6]} 72. Bb7 {[%clk 0:00:04.7]} 72... Bf4 {[%clk 0:00:04.1]} 73.
Kc6 {[%clk 0:00:05.1]} 73... Bg5 {[%clk 0:00:04.5]} 74. Kd5 {[%clk 0:00:05.5]}
74... h5 {[%clk 0:00:05]} 75. Ke6 {[%clk 0:00:06.4]} 75... Bh6 {[%clk
0:00:05.1]} 76. Kf7 {[%clk 0:00:06.9]} 76... h4 {[%clk 0:00:05.7]} 77. Kg6
{[%clk 0:00:07.8]} 77... Kb6 {[%clk 0:00:06]} 78. Kh5 {[%clk 0:00:08.2]} 78...
Bg5 {[%clk 0:00:06.3]} 79. Kg6 {[%clk 0:00:08.6]} 79... Bh6 {[%clk 0:00:06.7]}
80. Kf7 {[%clk 0:00:08.5]} 80... Ka7 {[%clk 0:00:06.2]} 81. Kg6 {[%clk
0:00:08.7]} 81... Kb8 {[%clk 0:00:05.7]} 82. Kh5 {[%clk 0:00:09.2]} 82... Bg5
{[%clk 0:00:06]} 83. e5 {[%clk 0:00:09.8]} 83... Ka7 {[%clk 0:00:05.1]} 84. e6
{[%clk 0:00:10]} 84... g6+ {[%clk 0:00:03.1]} 85. Kxg6 {[%clk 0:00:10.3]} 85...
Bf4 {[%clk 0:00:02.7]} 86. e7 {[%clk 0:00:10.6]} 1-0

[Event "*** Titled Tuesday Blitz"]
[Site "Chess.com"]
[Date "2021.04.27"]
[Round "3"]
[White "Alexander_Moskalenko"]
[Black "Manukyan_Artak"]
[Result "1/2-1/2"]
[WhiteElo "2747"]
[BlackElo "2461"]
[TimeControl "180+1"]
[EndTime "10:30:16 PDT"]
[Termination "Game drawn by repetition"]

1. b3 {[%clk 0:01:09.8]} 1... Nf6 {[%clk 0:02:57.4]} 2. Bb2 {[%clk 0:01:10.7]}
2... g6 {[%clk 0:02:58.1]} 3. Bxf6 {[%clk 0:01:05.6]} 3... exf6 {[%clk 0:02:59]}
4. c4 {[%clk 0:01:06.5]} 4... f5 {[%clk 0:02:58.8]} 5. Nc3 {[%clk 0:01:06.9]}
5... h5 {[%clk 0:02:58.9]} 6. h4 {[%clk 0:01:05.7]} 6... f4 {[%clk 0:02:56.7]}
7. Rc1 {[%clk 0:00:59.1]} 7... c6 {[%clk 0:02:54.2]} 8. Qc2 {[%clk 0:00:55]}
8... d6 {[%clk 0:02:53.7]} 9. Qe4+ {[%clk 0:00:54.9]} 9... Qe7 {[%clk
0:02:49.7]} 10. Qxf4 {[%clk 0:00:55.8]} 10... Bh6 {[%clk 0:02:49.3]} 11. Qe4
{[%clk 0:00:54.3]} 11... Be6 {[%clk 0:02:49.4]} 12. Nf3 {[%clk 0:00:54.1]} 12...
Nd7 {[%clk 0:02:47.5]} 13. e3 {[%clk 0:00:45.4]} 13... O-O-O {[%clk 0:02:39.6]}
14. Nd5 {[%clk 0:00:43]} 14... Qf8 {[%clk 0:02:33.4]} 15. Nf4 {[%clk 0:00:41.2]}
15... Bf5 {[%clk 0:02:26.8]} 16. Qd4 {[%clk 0:00:41.1]} 16... Kb8 {[%clk
0:02:24.7]} 17. Ne2 {[%clk 0:00:32.8]} 17... Bg7 {[%clk 0:02:12.2]} 18. Qf4
{[%clk 0:00:32.2]} 18... Ne5 {[%clk 0:02:11.3]} 19. Nc3 {[%clk 0:00:29]} 19...
Nd3+ {[%clk 0:01:48.9]} 20. Bxd3 {[%clk 0:00:24.4]} 20... Bxd3 {[%clk
0:01:49.8]} 21. Ng5 {[%clk 0:00:23.8]} 21... f5 {[%clk 0:01:39.8]} 22. Ne6
{[%clk 0:00:18.4]} 22... Qe7 {[%clk 0:01:34.5]} 23. Nxg7 {[%clk 0:00:15]} 23...
Qxg7 {[%clk 0:01:33.8]} 24. f3 {[%clk 0:00:15.3]} 24... Qe5 {[%clk 0:01:24.7]}
25. Kf2 {[%clk 0:00:13.2]} 25... Rhe8 {[%clk 0:01:17.5]} 26. Qd4 {[%clk
0:00:12.6]} 26... Qxd4 {[%clk 0:01:12.3]} 27. exd4 {[%clk 0:00:13.5]} 27... f4
{[%clk 0:01:03.2]} 28. Rce1 {[%clk 0:00:13.1]} 28... Kc7 {[%clk 0:01:03.5]} 29.
Rxe8 {[%clk 0:00:12.9]} 29... Rxe8 {[%clk 0:01:04.4]} 30. Re1 {[%clk 0:00:13.3]}
30... Kd7 {[%clk 0:01:01.1]} 31. Rxe8 {[%clk 0:00:12.5]} 31... Kxe8 {[%clk
0:01:02]} 32. d5 {[%clk 0:00:10.9]} 32... c5 {[%clk 0:01:00.9]} 33. Nb5 {[%clk
0:00:11]} 33... Kd7 {[%clk 0:00:57.7]} 34. Nc3 {[%clk 0:00:10.7]} 34... a6
{[%clk 0:00:51.3]} 35. Ne2 {[%clk 0:00:09.5]} 35... Bb1 {[%clk 0:00:50.7]} 36.
Nc3 {[%clk 0:00:07.8]} 36... Bd3 {[%clk 0:00:50.4]} 37. g3 {[%clk 0:00:08.7]}
37... fxg3+ {[%clk 0:00:45.5]} 38. Kxg3 {[%clk 0:00:09.6]} 38... b5 {[%clk
0:00:45.6]} 39. cxb5 {[%clk 0:00:09.4]} 39... axb5 {[%clk 0:00:46.5]} 40. a3
{[%clk 0:00:07.6]} 40... b4 {[%clk 0:00:31.4]} 41. axb4 {[%clk 0:00:07.3]} 41...
cxb4 {[%clk 0:00:32.3]} 42. Na2 {[%clk 0:00:07.8]} 42... Bc2 {[%clk 0:00:26.6]}
43. Nxb4 {[%clk 0:00:08.7]} 43... Bxb3 {[%clk 0:00:27]} 44. Kf4 {[%clk
0:00:09.5]} 44... Ke7 {[%clk 0:00:25.2]} 45. Kg5 {[%clk 0:00:09.3]} 45... Kf7
{[%clk 0:00:25.3]} 46. f4 {[%clk 0:00:09.8]} 46... Bd1 {[%clk 0:00:25.4]} 47.
Nc6 {[%clk 0:00:06.8]} 47... Bc2 {[%clk 0:00:20.9]} 48. Nd4 {[%clk 0:00:06.1]}
48... Be4 {[%clk 0:00:20]} 49. f5 {[%clk 0:00:07]} 49... gxf5 {[%clk 0:00:17.1]}
50. Nxf5 {[%clk 0:00:07.9]} 50... Bxd5 {[%clk 0:00:15.3]} 51. Kxh5 {[%clk
0:00:07.5]} 51... Bf3+ {[%clk 0:00:12.2]} 52. Kg5 {[%clk 0:00:07.5]} 52... d5
{[%clk 0:00:12.8]} 53. h5 {[%clk 0:00:07]} 53... Kg8 {[%clk 0:00:13.1]} 54. h6
{[%clk 0:00:07.1]} 54... Kh8 {[%clk 0:00:12.9]} 55. Ne7 {[%clk 0:00:06.1]} 55...
Be4 {[%clk 0:00:10.7]} 56. d4 {[%clk 0:00:06]} 56... Kh7 {[%clk 0:00:10.4]} 57.
Nc6 {[%clk 0:00:06.2]} 57... Bb1 {[%clk 0:00:08.1]} 58. Ne5 {[%clk 0:00:07.1]}
58... Be4 {[%clk 0:00:07.6]} 59. Nd7 {[%clk 0:00:07.4]} 59... Bb1 {[%clk
0:00:07.6]} 60. Nf6+ {[%clk 0:00:08.3]} 60... Kh8 {[%clk 0:00:07.6]} 61. Kf4
{[%clk 0:00:09.2]} 61... Ba2 {[%clk 0:00:06.1]} 62. Ke5 {[%clk 0:00:10.1]} 62...
Bb3 {[%clk 0:00:05.9]} 63. Kd6 {[%clk 0:00:11]} 63... Ba2 {[%clk 0:00:06.3]} 64.
Ke7 {[%clk 0:00:11.9]} 64... Bb3 {[%clk 0:00:05.4]} 65. Kf7 {[%clk 0:00:12.1]}
65... Ba2 {[%clk 0:00:05.7]} 66. Kg6 {[%clk 0:00:11.2]} 66... Bb1+ {[%clk
0:00:06]} 67. Kg5 {[%clk 0:00:11.2]} 67... Ba2 {[%clk 0:00:06.4]} 68. Kh4 {[%clk
0:00:10.3]} 68... Bb3 {[%clk 0:00:05.7]} 69. Kg4 {[%clk 0:00:10]} 69... Ba2
{[%clk 0:00:06.1]} 70. Kf5 {[%clk 0:00:10.2]} 70... Bb3 {[%clk 0:00:06.4]} 71.
Kf4 {[%clk 0:00:10.2]} 71... Ba2 {[%clk 0:00:06.8]} 72. Ke3 {[%clk 0:00:10.7]}
72... Bb3 {[%clk 0:00:05.9]} 73. Kd2 {[%clk 0:00:11.6]} 73... Ba2 {[%clk
0:00:06.2]} 74. Kc3 {[%clk 0:00:11.9]} 74... Bc4 {[%clk 0:00:06.1]} 75. Kb4
{[%clk 0:00:11.2]} 75... Ba2 {[%clk 0:00:06.1]} 76. Kc5 {[%clk 0:00:11.1]} 76...
Bc4 {[%clk 0:00:06.2]} 77. Kc6 {[%clk 0:00:12]} 77... Ba2 {[%clk 0:00:06.5]} 78.
Kd7 {[%clk 0:00:12.9]} 78... Bc4 {[%clk 0:00:06.8]} 79. Ke6 {[%clk 0:00:13.8]}
79... Ba2 {[%clk 0:00:07.1]} 80. Kf5 {[%clk 0:00:14.1]} 80... Bc4 {[%clk
0:00:06.6]} 81. Ng4 {[%clk 0:00:11.8]} 81... Kh7 {[%clk 0:00:06.2]} 82. Kg5
{[%clk 0:00:11]} 82... Ba2 {[%clk 0:00:05.1]} 83. Nf6+ {[%clk 0:00:11.3]} 83...
Kh8 {[%clk 0:00:05.5]} 84. Nd7 {[%clk 0:00:11.4]} 84... Kh7 {[%clk 0:00:05.7]}
85. Nf6+ {[%clk 0:00:10.3]} 85... Kh8 {[%clk 0:00:06]} 1/2-1/2

[Event "*** Titled Tuesday Blitz"]
[Site "Chess.com"]
[Date "2021.04.27"]
[Round "3"]
[White "erdni1993"]
[Black "mbojan"]
[Result "1/2-1/2"]
[WhiteElo "2425"]
[BlackElo "2645"]
[TimeControl "180+1"]
[EndTime "10:30:19 PDT"]
[Termination "Game drawn - insufficient material"]

1. e4 {[%clk 0:03:00.9]} 1... c6 {[%clk 0:02:59]} 2. d4 {[%clk 0:03:00.7]} 2...
d5 {[%clk 0:02:58.4]} 3. Nd2 {[%clk 0:03:01.3]} 3... dxe4 {[%clk 0:02:58.5]} 4.
Nxe4 {[%clk 0:03:02.2]} 4... Nf6 {[%clk 0:02:58.9]} 5. Nxf6+ {[%clk 0:03:01.8]}
5... exf6 {[%clk 0:02:59.1]} 6. c3 {[%clk 0:03:02.7]} 6... Bd6 {[%clk
0:02:58.9]} 7. Nf3 {[%clk 0:03:01.8]} 7... O-O {[%clk 0:02:58.4]} 8. h3 {[%clk
0:02:58.2]} 8... Re8+ {[%clk 0:02:56]} 9. Be2 {[%clk 0:02:53.4]} 9... Nd7 {[%clk
0:02:55.5]} 10. O-O {[%clk 0:02:52.5]} 10... Nf8 {[%clk 0:02:55.4]} 11. Re1
{[%clk 0:02:50.8]} 11... Ng6 {[%clk 0:02:54.9]} 12. Bf1 {[%clk 0:02:50.6]} 12...
Be6 {[%clk 0:02:52.2]} 13. Bd2 {[%clk 0:02:45.8]} 13... Qc7 {[%clk 0:02:52.1]}
14. c4 {[%clk 0:02:43.3]} 14... Rad8 {[%clk 0:02:51.5]} 15. Bc3 {[%clk
0:02:43.1]} 15... Nf4 {[%clk 0:02:40.9]} 16. Qa4 {[%clk 0:02:39.6]} 16... a6
{[%clk 0:02:36.5]} 17. c5 {[%clk 0:02:39.1]} 17... Bf8 {[%clk 0:02:35.3]} 18.
Ba5 {[%clk 0:02:39]} 18... Qd7 {[%clk 0:02:26.4]} 19. Bxd8 {[%clk 0:02:38.6]}
19... Rxd8 {[%clk 0:02:26.8]} 20. Re4 {[%clk 0:02:15.2]} 20... g5 {[%clk
0:02:16.1]} 21. Bc4 {[%clk 0:01:44]} 21... Bf5 {[%clk 0:02:02.3]} 22. Rxf4
{[%clk 0:01:33.3]} 22... gxf4 {[%clk 0:02:00.8]} 23. Re1 {[%clk 0:01:34.2]}
23... Be6 {[%clk 0:01:58.4]} 24. Bxe6 {[%clk 0:01:28.2]} 24... fxe6 {[%clk
0:01:58.2]} 25. Qb3 {[%clk 0:01:28.6]} 25... Re8 {[%clk 0:01:54.8]} 26. Re4
{[%clk 0:01:26.1]} 26... Bh6 {[%clk 0:01:55]} 27. Nd2 {[%clk 0:01:09.4]} 27...
Kf7 {[%clk 0:01:50.8]} 28. Nc4 {[%clk 0:01:07.9]} 28... Bf8 {[%clk 0:01:29.3]}
29. Rxf4 {[%clk 0:01:08.1]} 29... Kg7 {[%clk 0:01:29.4]} 30. Qg3+ {[%clk
0:01:07.2]} 30... Kh8 {[%clk 0:01:26.7]} 31. Rxf6 {[%clk 0:00:35.4]} 31... Qxd4
{[%clk 0:01:00.5]} 32. Ne5 {[%clk 0:00:33.6]} 32... Bg7 {[%clk 0:01:00.4]} 33.
Nf7+ {[%clk 0:00:20.5]} 33... Kg8 {[%clk 0:01:00.5]} 34. Rf4 {[%clk 0:00:19.7]}
34... Qd1+ {[%clk 0:00:52.9]} 35. Kh2 {[%clk 0:00:19.4]} 35... Qh5 {[%clk
0:00:53.2]} 36. Nd6 {[%clk 0:00:16.4]} 36... Re7 {[%clk 0:00:52.7]} 37. Rg4
{[%clk 0:00:16.1]} 37... Kh8 {[%clk 0:00:37.2]} 38. Ne4 {[%clk 0:00:16.2]} 38...
h6 {[%clk 0:00:31.9]} 39. Qb8+ {[%clk 0:00:07.6]} 39... Qe8 {[%clk 0:00:32]} 40.
Qxe8+ {[%clk 0:00:07.3]} 40... Rxe8 {[%clk 0:00:32.9]} 41. Nd6 {[%clk
0:00:07.7]} 41... Re7 {[%clk 0:00:33]} 42. g3 {[%clk 0:00:07.8]} 42... Bxb2
{[%clk 0:00:32.7]} 43. Rb4 {[%clk 0:00:07.4]} 43... Ba3 {[%clk 0:00:33]} 44.
Rxb7 {[%clk 0:00:07.5]} 44... Rxb7 {[%clk 0:00:29]} 45. Nxb7 {[%clk 0:00:08.4]}
45... Kg7 {[%clk 0:00:29.4]} 46. Nd8 {[%clk 0:00:08.6]} 46... Kf6 {[%clk
0:00:27.8]} 47. Nxc6 {[%clk 0:00:08.8]} 47... Bxc5 {[%clk 0:00:28.1]} 48. Kg2
{[%clk 0:00:09.4]} 48... e5 {[%clk 0:00:23.3]} 49. Kf3 {[%clk 0:00:09.8]} 49...
Ke6 {[%clk 0:00:23.6]} 50. Ke4 {[%clk 0:00:09.9]} 50... Bxf2 {[%clk 0:00:23.2]}
51. Nxe5 {[%clk 0:00:10.2]} 51... Bxg3 {[%clk 0:00:23.1]} 52. Ng4 {[%clk
0:00:10.4]} 52... h5 {[%clk 0:00:22.2]} 53. Ne3 {[%clk 0:00:10.9]} 53... Bc7
{[%clk 0:00:20.6]} 54. Nc4 {[%clk 0:00:11.2]} 54... Kf6 {[%clk 0:00:18.4]} 55.
a4 {[%clk 0:00:10.7]} 55... Kg5 {[%clk 0:00:18.8]} 56. Kf3 {[%clk 0:00:11]}
56... Kf5 {[%clk 0:00:19.3]} 57. Ne3+ {[%clk 0:00:10.3]} 57... Ke5 {[%clk
0:00:19.9]} 58. Nc2 {[%clk 0:00:10.4]} 58... a5 {[%clk 0:00:18.8]} 59. Ne3
{[%clk 0:00:10.3]} 59... Kd4 {[%clk 0:00:18.5]} 60. Nf5+ {[%clk 0:00:10.3]}
60... Kc4 {[%clk 0:00:18.7]} 61. Ke4 {[%clk 0:00:10.8]} 61... Kb4 {[%clk
0:00:17.7]} 62. Kd3 {[%clk 0:00:11.2]} 62... Kxa4 {[%clk 0:00:13.2]} 63. Kc2
{[%clk 0:00:11.3]} 63... Kb4 {[%clk 0:00:12.8]} 64. Ng7 {[%clk 0:00:10.9]} 64...
h4 {[%clk 0:00:12.9]} 65. Ne6 {[%clk 0:00:10.6]} 65... Bg3 {[%clk 0:00:12.6]}
66. Nd4 {[%clk 0:00:10.2]} 66... a4 {[%clk 0:00:12.7]} 67. Nc6+ {[%clk
0:00:09.5]} 67... Kb5 {[%clk 0:00:13.2]} 68. Nd4+ {[%clk 0:00:09.5]} 68... Kc4
{[%clk 0:00:13.9]} 69. Nf3 {[%clk 0:00:09.6]} 69... a3 {[%clk 0:00:14]} 70. Nd2+
{[%clk 0:00:07.9]} 70... Kb4 {[%clk 0:00:14.1]} 71. Nf3 {[%clk 0:00:07.7]} 71...
Bf2 {[%clk 0:00:12]} 72. Nd2 {[%clk 0:00:07.4]} 72... Bd4 {[%clk 0:00:10.8]} 73.
Kb1 {[%clk 0:00:04.9]} 73... Kc3 {[%clk 0:00:09.3]} 74. Nf3 {[%clk 0:00:04.5]}
74... Bf6 {[%clk 0:00:09.6]} 75. Ka2 {[%clk 0:00:04.5]} 75... Kb4 {[%clk
0:00:09.1]} 76. Nd2 {[%clk 0:00:04.7]} 76... Bc3 {[%clk 0:00:02.7]} 77. Nf3
{[%clk 0:00:05.1]} 77... Bf6 {[%clk 0:00:03.4]} 78. Nd2 {[%clk 0:00:05.3]} 78...
Be5 {[%clk 0:00:04.1]} 79. Nf3 {[%clk 0:00:05.5]} 79... Bg3 {[%clk 0:00:04.7]}
80. Nd2 {[%clk 0:00:05.5]} 80... Ka4 {[%clk 0:00:05.3]} 81. Nf3 {[%clk 0:00:06]}
81... Kb4 {[%clk 0:00:04.8]} 82. Nd2 {[%clk 0:00:06.4]} 82... Kc3 {[%clk
0:00:04.7]} 83. Nf3 {[%clk 0:00:06.9]} 83... Kd3 {[%clk 0:00:04.8]} 84. Nxh4
{[%clk 0:00:06.6]} 84... Bxh4 {[%clk 0:00:04.7]} 85. Kxa3 {[%clk 0:00:07.5]}
85... Ke3 {[%clk 0:00:05]} 86. Kb3 {[%clk 0:00:07.2]} 86... Kf3 {[%clk
0:00:05.9]} 87. Kc4 {[%clk 0:00:08.1]} 87... Kg3 {[%clk 0:00:06.8]} 88. Kd5
{[%clk 0:00:09]} 88... Kxh3 {[%clk 0:00:07.7]} 1/2-1/2